fUST/lending_fUST_20250529
["ID","MTS","AMOUNT","RATE_DAILY","PERIOD"]
[362931473,1748524886528,-205.46166963,0.00014751,2]
[362931474,1748524887945,-252.05761078,0.00014751,2]
[362931475,1748525084149,-157.56091234,0.00014603,2]
[362931476,1748525086440,-227.76910201,0.00014603,2]
[362931477,1748525087536,-208.71843324,0.00014603,2]
[362931478,1748525090548,-155.15591869,0.00014603,2]
[362931494,1748525237375,244.9,0.00013545,2]
[362931495,1748525238478,-273.52668646,0.0001419,2]
[362931497,1748525241396,-216.28331354,0.0001419,2]
[362931500,1748525272207,-257.10585127,0.00014457,2]
[362931582,1748525310472,231.55,0.00013587,2]
[362931583,1748525313661,-255.11607998,0.00014234,2]
[362931584,1748525319835,-207.97392002,0.00014234,2]
[362931590,1748525383262,227.97,0.00013591,2]
[362931591,1748525387406,-227.877427,0.00014238,2]
[362931592,1748525389771,-205.25416355,0.00014238,2]
[362931593,1748525392296,-22.80840945,0.00014238,2]
[362931619,1748525432300,-4742.89414873,0.00014457,2]
[362931620,1748525432310,-683.91,0.00014885,2]
[362931621,1748525432321,-199.2997401,0.000149,2]
[362931622,1748525432332,-1200.0,0.00014999,2]
[362931623,1748525432341,-316.704807,0.00015,2]
[362931624,1748525432351,-1652.19315416,0.00015,2]
[362931625,1748525432360,-300.0,0.00015531,2]
[362931626,1748525432371,-300.0,0.00015531,2]
[362931627,1748525432380,-289.0,0.00015531,2]
[362931628,1748525432391,-300.0,0.00015531,2]
[362931629,1748525432400,-300.0,0.00015531,2]
[362931630,1748525432410,-911.87,0.00015532,2]
[362931631,1748525432420,-175.60542852,0.00015617,2]
[362931632,1748525433113,-354.19390828,0.00015617,2]
[362931633,1748525433129,-334.467427,0.00015655,2]
[362931634,1748525433144,-165.5325749,0.00015677,2]
[362931635,1748525433155,-939.78808214,0.00016,2]
[362931636,1748525433168,-208.99316513,0.00016,2]
[362931637,1748525433181,-10945.87148552,0.000161,2]
[362931638,1748525433195,-14401.12851448,0.0001616,2]
[362931639,1748525433207,-1139.84,0.0001618,2]
[362931640,1748525433219,-459.88210647,0.000164,2]
[362931641,1748525433233,-1680.0,0.00016499,2]
[362931642,1748525433245,-152.0,0.00016745,2]
[362931643,1748525433266,-1367.81,0.00016827,2]
[362931644,1748525433281,-420.0,0.00016989,2]
[362931645,1748525433296,-420.0,0.00016989,2]
[362931646,1748525433313,-249.0,0.00016989,2]
[362931647,1748525433328,-389.992948,0.00017357,2]
[362931648,1748525433342,-1595.78,0.00017474,2]
[362931649,1748525433356,-500.0,0.00017492,2]
[362931650,1748525433371,-24900.0,0.00017493,2]
[362931651,1748525433385,-1823.75,0.00018121,2]
[362931652,1748525433400,-2351.0,0.00018149,2]
[362931653,1748525433414,-1018.03705388,0.00018399,2]
[362931654,1748525433427,-500.0,0.00018399,2]
[362931655,1748525433440,-566.55091575,0.00018399,2]
[362931656,1748525433453,-1018.03705388,0.00018399,2]
[362931657,1748525433467,-1018.03705388,0.00018399,2]
[362931658,1748525433481,-1018.03705388,0.00018399,2]
[362931659,1748525433494,-1018.03705388,0.00018399,2]
[362931660,1748525433514,-742.53609778,0.000184,2]
[362931661,1748525433527,-742.53609752,0.000184,2]
[362931662,1748525433540,-742.53609752,0.000184,2]
[362931663,1748525433554,-742.53609752,0.000184,2]
[362931664,1748525433567,-742.53609752,0.000184,2]
[362931665,1748525433580,-742.53609752,0.000184,2]
[362931666,1748525433594,-742.53609752,0.000184,2]
[362931667,1748525433610,-742.53609752,0.000184,2]
[362931668,1748525433622,-742.53609752,0.000184,2]
[362931669,1748525433637,-587.0,0.00018583,2]
[362931670,1748525433650,-587.0,0.00018583,2]
[362931671,1748525433663,-742.53609752,0.00018693,2]
[362931672,1748525433676,-2051.72,0.00018768,2]
[362931673,1748525433690,-712.53848447,0.000189,2]
[362931674,1748525433703,-742.53609752,0.00019003,2]
[362931675,1748525433717,-398.97997744,0.00019078,2]
[362931676,1748525433730,-438.98305832,0.00019128,2]
[362931677,1748525433744,-1443.54,0.00019168,3]
[362931678,1748525433763,-721.77,0.00019168,3]
[362931679,1748525433776,-360.88,0.00019168,3]
[362931680,1748525433790,-180.44,0.00019168,3]
[362931681,1748525433804,-541.35,0.00019168,3]
[362931682,1748525433817,-500.0,0.00019173,2]
[362931683,1748525433829,-502.45172187,0.00019173,2]
[362931684,1748525433842,-500.0,0.00019173,2]
[362931685,1748525433855,-500.0,0.00019173,2]
[362931686,1748525433870,-500.0,0.00019173,2]
[362931687,1748525433883,-500.0,0.00019173,2]
[362931688,1748525433895,-500.0,0.00019173,2]
[362931689,1748525433908,-500.0,0.00019173,2]
[362931690,1748525433919,-160.0,0.00019177,2]
[362931691,1748525434092,-430.0,0.00019178,2]
[362931692,1748525434104,-430.0,0.00019178,2]
[362931693,1748525434115,-430.0,0.00019178,2]
[362931694,1748525434126,-430.0,0.00019178,2]
[362931695,1748525434136,-430.54459911,0.00019178,2]
[362931696,1748525434145,-430.0,0.00019178,2]
[362931697,1748525434156,-430.0,0.00019178,2]
[362931698,1748525434166,-430.0,0.00019178,2]
[362931699,1748525434176,-430.0,0.00019178,2]
[362931700,1748525434186,-430.0,0.00019178,2]
[362931701,1748525434197,-432.14432804,0.00019178,2]
[362931702,1748525434207,-430.0,0.00019178,2]
[362931703,1748525434216,-430.0,0.00019178,2]
[362931704,1748525434227,-443.66278669,0.00019178,2]
[362931705,1748525434237,-489.38536183,0.00019178,2]
[362931706,1748525434246,-431.19583366,0.00019178,2]
[362931707,1748525434262,-430.0,0.00019178,2]
[362931708,1748525434272,-430.0,0.00019178,2]
[362931709,1748525434287,-430.0,0.00019178,2]
[362931710,1748525434296,-430.0,0.00019178,2]
[362931711,1748525434306,-430.0,0.00019178,2]
[362931712,1748525434317,-430.0,0.00019178,2]
[362931713,1748525434328,-430.0,0.00019178,2]
[362931714,1748525434337,-430.0,0.00019178,2]
[362931715,1748525434347,-430.0,0.00019178,2]
[362931716,1748525434358,-430.0,0.00019178,2]
[362931717,1748525434368,-430.0,0.00019178,2]
[362931718,1748525434378,-430.0,0.00019178,2]
[362931719,1748525434387,-430.0,0.00019178,2]
[362931720,1748525434397,-290.29677932,0.00019178,2]
[362931721,1748525434407,-430.0,0.00019178,2]
[362931722,1748525434416,-400.0,0.00019178,2]
[362931723,1748525434426,-430.0,0.00019178,2]
[362931724,1748525434436,-1036.53709069,0.00019178,2]
[362931725,1748525434445,-430.0,0.00019178,2]
[362931726,1748525434455,-430.0,0.00019178,2]
[362931727,1748525434465,-433.07886723,0.00019178,2]
[362931728,1748525434475,-354.94312132,0.00019178,2]
[362931729,1748525434485,-430.0,0.00019178,2]
[362931730,1748525434494,-258.17688479,0.00019178,2]
[362931731,1748525434507,-464.27381962,0.00019178,2]
[362931732,1748525434517,-466.81032424,0.00019178,2]
[362931733,1748525434527,-430.0,0.00019178,2]
[362931734,1748525434537,-430.0,0.00019178,2]
[362931735,1748525434547,-364.16638328,0.00019178,2]
[362931736,1748525434556,-430.0,0.00019178,2]
[362931737,1748525434566,-430.0,0.00019178,2]
[362931738,1748525434575,-430.0,0.00019178,2]
[362931739,1748525434585,-430.0,0.00019178,2]
[362931740,1748525434594,-430.0,0.00019178,2]
[362931741,1748525434604,-400.0,0.00019178,2]
[362931742,1748525434614,-430.0,0.00019178,2]
[362931743,1748525434623,-430.0,0.00019178,2]
[362931744,1748525434633,-430.0,0.00019178,2]
[362931745,1748525434642,-430.0,0.00019178,2]
[362931746,1748525434652,-359.31344587,0.00019178,2]
[362931747,1748525434661,-430.0,0.00019178,2]
[362931748,1748525434671,-430.0,0.00019178,2]
[362931749,1748525434680,-430.0,0.00019178,2]
[362931750,1748525434689,-450.00000402,0.00019178,2]
[362931751,1748525434699,-430.0,0.00019178,2]
[362931752,1748525434708,-430.0,0.00019178,2]
[362931753,1748525434718,-430.0,0.00019178,2]
[362931754,1748525434727,-516.98823777,0.00019178,2]
[362931755,1748525434737,-430.0,0.00019178,2]
[362931756,1748525434747,-430.0,0.00019178,2]
[362931757,1748525434761,-430.0,0.00019178,2]
[362931758,1748525434770,-430.0,0.00019178,2]
[362931759,1748525434779,-400.0,0.00019178,2]
[362931760,1748525434789,-430.0,0.00019178,2]
[362931761,1748525434799,-554.1186211,0.00019178,2]
[362931762,1748525434809,-234.31647222,0.00019178,2]
[362931763,1748525434818,-430.0,0.00019178,2]
[362931764,1748525434827,-430.0,0.00019178,2]
[362931765,1748525434837,-430.0,0.00019178,2]
[362931766,1748525434847,-430.0,0.00019178,2]
[362931767,1748525434857,-491.38910983,0.00019178,2]
[362931768,1748525434866,-430.0,0.00019178,2]
[362931769,1748525434875,-400.0,0.00019178,2]
[362931770,1748525434885,-430.0,0.00019178,2]
[362931771,1748525434894,-430.0,0.00019178,2]
[362931772,1748525434904,-430.0,0.00019178,2]
[362931773,1748525434915,-430.0,0.00019178,2]
[362931774,1748525434925,-430.0,0.00019178,2]
[362931775,1748525434935,-430.0,0.00019178,2]
[362931776,1748525434944,-430.0,0.00019178,2]
[362931777,1748525434954,-430.0,0.00019178,2]
[362931778,1748525434963,-430.0,0.00019178,2]
[362931779,1748525434973,-500.24903475,0.00019178,2]
[362931780,1748525434983,-430.0,0.00019178,2]
[362931781,1748525434993,-430.0,0.00019178,2]
[362931782,1748525435003,-496.88159365,0.00019178,2]
[362931783,1748525435017,-430.0,0.00019178,2]
[362931784,1748525435027,-430.0,0.00019178,2]
[362931785,1748525435036,-302.42575276,0.00019178,2]
[362931786,1748525435046,-378.41339351,0.00019178,2]
[362931787,1748525435056,-430.0,0.00019178,2]
[362931788,1748525435066,-438.51128961,0.00019178,2]
[362931789,1748525435075,-362.76924559,0.00019178,2]
[362931790,1748525435085,-430.0,0.00019178,2]
[362931791,1748525435094,-430.0,0.00019178,2]
[362931792,1748525435104,-430.0,0.00019178,2]
[362931793,1748525435114,-430.0,0.00019178,2]
[362931794,1748525435124,-430.0,0.00019178,2]
[362931795,1748525435133,-430.0,0.00019178,2]
[362931796,1748525435143,-430.0,0.00019178,2]
[362931797,1748525435152,-509.31724677,0.00019178,2]
[362931798,1748525435161,-216.10129984,0.00019178,2]
[362931799,1748525435170,-430.0,0.00019178,2]
[362931800,1748525435181,-431.5140174,0.00019178,2]
[362931801,1748525435191,-430.0,0.00019178,2]
[362931802,1748525435201,-430.0,0.00019178,2]
[362931803,1748525435211,-430.0,0.00019178,2]
[362931804,1748525435222,-430.0,0.00019178,2]
[362931805,1748525435232,-430.0,0.00019178,2]
[362931806,1748525435242,-546.59860463,0.00019178,2]
[362931807,1748525435251,-430.0,0.00019178,2]
[362931808,1748525435265,-430.0,0.00019178,2]
[362931809,1748525435275,-430.0,0.00019178,2]
[362931810,1748525435284,-430.0,0.00019178,2]
[362931811,1748525435293,-430.0,0.00019178,2]
[362931812,1748525435304,-430.0,0.00019178,2]
[362931813,1748525435314,-430.0,0.00019178,2]
[362931814,1748525435324,-430.0,0.00019178,2]
[362931815,1748525435333,-443.29796107,0.00019178,2]
[362931816,1748525435343,-430.0,0.00019178,2]
[362931817,1748525435353,-430.0,0.00019178,2]
[362931818,1748525435362,-430.0,0.00019178,2]
[362931819,1748525435372,-430.0,0.00019178,2]
[362931820,1748525435383,-430.0,0.00019178,2]
[362931821,1748525435393,-430.0,0.00019178,2]
[362931822,1748525435402,-430.0,0.00019178,2]
[362931823,1748525435411,-430.0,0.00019178,2]
[362931824,1748525435420,-430.0,0.00019178,2]
[362931825,1748525435431,-430.0,0.00019178,2]
[362931826,1748525435441,-430.0,0.00019178,2]
[362931827,1748525435451,-430.0,0.00019178,2]
[362931828,1748525435460,-430.0,0.00019178,2]
[362931829,1748525435470,-506.00417051,0.00019178,2]
[362931830,1748525435479,-430.0,0.00019178,2]
[362931831,1748525435489,-415.8526449,0.00019178,2]
[362931832,1748525435498,-430.0,0.00019178,2]
[362931833,1748525435511,-430.0,0.00019178,2]
[362931834,1748525435521,-430.0,0.00019178,2]
[362931835,1748525435531,-430.0,0.00019178,2]
[362931836,1748525435541,-430.0,0.00019178,2]
[362931837,1748525435551,-430.0,0.00019178,2]
[362931838,1748525435560,-430.0,0.00019178,2]
[362931839,1748525435570,-430.0,0.00019178,2]
[362931840,1748525435579,-430.0,0.00019178,2]
[362931841,1748525435589,-409.24260923,0.00019178,2]
[362931842,1748525435599,-430.0,0.00019178,2]
[362931843,1748525435609,-430.0,0.00019178,2]
[362931844,1748525435618,-430.0,0.00019178,2]
[362931845,1748525435628,-430.0,0.00019178,2]
[362931846,1748525435638,-430.0,0.00019178,2]
[362931847,1748525435647,-430.0,0.00019178,2]
[362931848,1748525435658,-430.0,0.00019178,2]
[362931849,1748525435667,-430.0,0.00019178,2]
[362931850,1748525435678,-430.0,0.00019178,2]
[362931851,1748525435688,-430.0,0.00019178,2]
[362931852,1748525435698,-430.93441036,0.00019178,2]
[362931853,1748525435708,-430.0,0.00019178,2]
[362931854,1748525435717,-430.0,0.00019178,2]
[362931855,1748525435726,-430.0,0.00019178,2]
[362931856,1748525435735,-430.0,0.00019178,2]
[362931857,1748525435744,-402.1148411,0.00019178,2]
[362931858,1748525435760,-405.12001318,0.00019178,2]
[362931859,1748525435771,-430.0,0.00019178,2]
[362931860,1748525435780,-430.0,0.00019178,2]
[362931861,1748525435790,-430.0,0.00019178,2]
[362931862,1748525435799,-430.0,0.00019178,2]
[362931863,1748525435808,-430.0,0.00019178,2]
[362931864,1748525435819,-430.0,0.00019178,2]
[362931865,1748525435828,-430.0,0.00019178,2]
[362931866,1748525435838,-430.0,0.00019178,2]
[362931867,1748525435847,-430.0,0.00019178,2]
[362931868,1748525435857,-430.0,0.00019178,2]
[362931869,1748525435867,-430.0,0.00019178,2]
[362931870,1748525435877,-412.88230758,0.00019178,2]
[362931871,1748525435887,-430.0,0.00019178,2]
[362931872,1748525435896,-430.0,0.00019178,2]
[362931873,1748525435906,-430.0,0.00019178,2]
[362931874,1748525435916,-430.0,0.00019178,2]
[362931875,1748525435925,-430.0,0.00019178,2]
[362931876,1748525435935,-430.0,0.00019178,2]
[362931877,1748525435944,-430.0,0.00019178,2]
[362931878,1748525435954,-175.11898593,0.00019178,2]
[362931879,1748525435963,-430.0,0.00019178,2]
[362931880,1748525435973,-430.0,0.00019178,2]
[362931881,1748525435983,-449.35205607,0.00019178,2]
[362931882,1748525435992,-402.84952815,0.00019178,2]
[362931883,1748525436004,-430.0,0.00019178,2]
[362931884,1748525436018,-433.23789947,0.00019178,2]
[362931885,1748525436028,-430.0,0.00019178,2]
[362931886,1748525436036,-430.0,0.00019178,2]
[362931887,1748525436046,-375.30368883,0.00019178,2]
[362931888,1748525436056,-430.0,0.00019178,2]
[362931889,1748525436066,-300.0,0.00019178,2]
[362931890,1748525436075,-430.0,0.00019178,2]
[362931891,1748525436085,-430.0,0.00019178,2]
[362931892,1748525436094,-430.0,0.00019178,2]
[362931893,1748525436103,-430.0,0.00019178,2]
[362931894,1748525436113,-430.0,0.00019178,2]
[362931895,1748525436122,-430.0,0.00019178,2]
[362931896,1748525436131,-430.0,0.00019178,2]
[362931897,1748525436141,-431.34582552,0.00019178,2]
[362931898,1748525436151,-430.0,0.00019178,2]
[362931899,1748525436160,-430.0,0.00019178,2]
[362931900,1748525436170,-373.43715074,0.00019178,2]
[362931901,1748525436179,-430.0,0.00019178,2]
[362931902,1748525436188,-430.0,0.00019178,2]
[362931903,1748525436198,-430.0,0.00019178,2]
[362931904,1748525436207,-430.0,0.00019178,2]
[362931905,1748525436216,-423.43900655,0.00019178,2]
[362931906,1748525436225,-430.0,0.00019178,2]
[362931907,1748525436235,-430.0,0.00019178,2]
[362931908,1748525436244,-173.64057985,0.00019178,2]
[362931909,1748525436261,-430.0,0.00019178,2]
[362931910,1748525436271,-430.0,0.00019178,2]
[362931911,1748525436281,-215.58156657,0.00019178,2]
[362931912,1748525436290,-463.83571368,0.00019178,2]
[362931913,1748525436301,-430.0,0.00019178,2]
[362931914,1748525436311,-348.72882574,0.00019178,2]
[362931915,1748525436320,-376.4716147,0.00019178,2]
[362931916,1748525436329,-430.0,0.00019178,2]
[362931917,1748525436339,-430.0,0.00019178,2]
[362931918,1748525436349,-430.0,0.00019178,2]
[362931919,1748525436358,-430.0,0.00019178,2]
[362931920,1748525436368,-430.0,0.00019178,2]
[362931921,1748525436378,-430.0,0.00019178,2]
[362931922,1748525436388,-430.0,0.00019178,2]
[362931923,1748525436398,-430.0,0.00019178,2]
[362931924,1748525436407,-341.82857862,0.00019178,2]
[362931925,1748525436417,-375.86035573,0.00019178,2]
[362931926,1748525436525,-430.0,0.00019178,2]
[362931927,1748525436535,-430.0,0.00019178,2]
[362931928,1748525436545,-480.42722347,0.00019178,2]
[362931929,1748525436554,-430.0,0.00019178,2]
[362931930,1748525436563,-431.01496524,0.00019178,2]
[362931931,1748525436573,-430.0,0.00019178,2]
[362931932,1748525436582,-430.0,0.00019178,2]
[362931933,1748525436591,-352.64420861,0.00019178,2]
[362931934,1748525436601,-430.0,0.00019178,2]
[362931935,1748525436611,-430.0,0.00019178,2]
[362931936,1748525436621,-570.26250707,0.00019178,2]
[362931937,1748525436630,-430.0,0.00019178,2]
[362931938,1748525436640,-430.0,0.00019178,2]
[362931939,1748525436650,-430.0,0.00019178,2]
[362931940,1748525436659,-430.0,0.00019178,2]
[362931941,1748525436669,-430.0,0.00019178,2]
[362931942,1748525436678,-430.0,0.00019178,2]
[362931943,1748525436688,-430.0,0.00019178,2]
[362931944,1748525436699,-373.12966969,0.00019178,2]
[362931945,1748525436709,-430.0,0.00019178,2]
[362931946,1748525436718,-430.0,0.00019178,2]
[362931947,1748525436728,-373.33719584,0.00019178,2]
[362931948,1748525436738,-430.0,0.00019178,2]
[362931949,1748525436747,-430.0,0.00019178,2]
[362931950,1748525436762,-376.25679798,0.00019178,2]
[362931951,1748525436772,-430.0,0.00019178,2]
[362931952,1748525436781,-430.0,0.00019178,2]
[362931953,1748525436791,-430.0,0.00019178,2]
[362931954,1748525436800,-430.0,0.00019178,2]
[362931955,1748525436809,-375.36225519,0.00019178,2]
[362931956,1748525436818,-430.0,0.00019178,2]
[362931957,1748525436828,-374.67780047,0.00019178,2]
[362931958,1748525436838,-373.82045172,0.00019178,2]
[362931959,1748525436848,-373.54616726,0.00019178,2]
[362931960,1748525436857,-430.0,0.00019178,2]
[362931961,1748525436864,-430.0,0.00019178,2]
[362931962,1748525436873,-373.99555661,0.00019178,2]
[362931963,1748525436881,-430.0,0.00019178,2]
[362931964,1748525436889,-432.58492878,0.00019178,2]
[362931965,1748525436897,-430.0,0.00019178,2]
[362931966,1748525436905,-431.70422425,0.00019178,2]
[362931967,1748525436914,-430.0,0.00019178,2]
[362931968,1748525436922,-430.0,0.00019178,2]
[362931969,1748525436931,-430.0,0.00019178,2]
[362931970,1748525436939,-423.26750811,0.00019178,2]
[362931971,1748525436948,-430.0,0.00019178,2]
[362931972,1748525436956,-430.0,0.00019178,2]
[362931973,1748525436964,-430.0,0.00019178,2]
[362931974,1748525436973,-430.0,0.00019178,2]
[362931975,1748525436982,-485.46785418,0.00019178,2]
[362931976,1748525436991,-500.0,0.00019178,2]
[362931977,1748525437000,-500.0,0.00019178,2]
[362931978,1748525437015,-500.0,0.00019178,2]
[362931979,1748525437025,-500.0,0.00019178,2]
[362931980,1748525437034,-377.43136849,0.00019178,2]
[362931981,1748525437043,-500.0,0.00019178,2]
[362931982,1748525437052,-500.0,0.00019178,2]
[362931983,1748525437061,-598.29365222,0.00019178,2]
[362931984,1748525437071,-430.0,0.00019178,2]
[362931985,1748525437080,-373.03213656,0.00019178,2]
[362931986,1748525437089,-430.0,0.00019178,2]
[362931987,1748525437099,-375.86379841,0.00019178,2]
[362931988,1748525437109,-432.04122031,0.00019178,2]
[362931989,1748525437120,-430.0,0.00019178,2]
[362931990,1748525437129,-430.0,0.00019178,2]
[362931991,1748525437139,-395.56512391,0.00019178,2]
[362931992,1748525437149,-376.41168405,0.00019178,2]
[362931993,1748525437158,-430.0,0.00019178,2]
[362931994,1748525437168,-430.0,0.00019178,2]
[362931995,1748525437178,-430.0,0.00019178,2]
[362931996,1748525437187,-427.0730036,0.00019178,2]
[362931997,1748525437196,-375.39438031,0.00019178,2]
[362931998,1748525437206,-434.90584678,0.00019178,2]
[362931999,1748525437215,-430.0,0.00019178,2]
[362932000,1748525437224,-431.7247267,0.00019178,2]
[362932001,1748525437234,-430.0,0.00019178,2]
[362932002,1748525437243,-404.37716836,0.00019178,2]
[362932003,1748525437257,-370.0,0.00019178,2]
[362932004,1748525437266,-430.0,0.00019178,2]
[362932005,1748525437276,-375.95946573,0.00019178,2]
[362932006,1748525437285,-375.73418528,0.00019178,2]
[362932007,1748525437294,-435.2764476,0.00019178,2]
[362932008,1748525437306,-430.0,0.00019178,2]
[362932009,1748525437315,-430.0,0.00019178,2]
[362932010,1748525437326,-430.0,0.00019178,2]
[362932011,1748525437335,-430.0,0.00019178,2]
[362932012,1748525437343,-430.0,0.00019178,2]
[362932013,1748525437353,-277.67708074,0.00019178,2]
[362932014,1748525437362,-430.0,0.00019178,2]
[362932015,1748525437373,-477.97749469,0.00019178,2]
[362932016,1748525437382,-431.41595195,0.00019178,2]
[362932017,1748525437391,-430.0,0.00019178,2]
[362932018,1748525437403,-430.0,0.00019178,2]
[362932019,1748525437412,-372.78547495,0.00019178,2]
[362932020,1748525437422,-430.0,0.00019178,2]
[362932021,1748525437431,-430.0,0.00019178,2]
[362932022,1748525437440,-182.22205189,0.00019178,2]
[362932023,1748525437450,-430.0,0.00019178,2]
[362932024,1748525437459,-380.9513032,0.00019178,2]
[362932025,1748525437469,-377.32057026,0.00019178,2]
[362932026,1748525437478,-430.0,0.00019178,2]
[362932027,1748525437489,-385.53724638,0.00019178,2]
[362932028,1748525437498,-430.0,0.00019178,2]
[362932029,1748525437515,-430.0,0.00019178,2]
[362932030,1748525437526,-430.0,0.00019178,2]
[362932031,1748525437538,-430.0,0.00019178,2]
[362932032,1748525437548,-376.4821443,0.00019178,2]
[362932033,1748525437558,-430.0,0.00019178,2]
[362932034,1748525437568,-430.0,0.00019178,2]
[362932035,1748525437577,-402.98090755,0.00019178,2]
[362932036,1748525437587,-430.0,0.00019178,2]
[362932037,1748525437596,-376.04102151,0.00019178,2]
[362932038,1748525437605,-430.0,0.00019178,2]
[362932039,1748525437615,-381.04863351,0.00019178,2]
[362932040,1748525437625,-430.0,0.00019178,2]
[362932041,1748525437634,-401.99029895,0.00019178,2]
[362932042,1748525437643,-430.0,0.00019178,2]
[362932043,1748525437653,-430.0,0.00019178,2]
[362932044,1748525437663,-430.0,0.00019178,2]
[362932045,1748525437672,-380.25847565,0.00019178,2]
[362932047,1748525437682,-500.0,0.00019178,2]
[362932049,1748525437691,-430.0,0.00019178,2]
[362932050,1748525437701,-430.0,0.00019178,2]
[362932051,1748525437710,-430.0,0.00019178,2]
[362932052,1748525437720,-375.6893857,0.00019178,2]
[362932053,1748525437729,-349.44075123,0.00019178,2]
[362932054,1748525437738,-518.02083928,0.00019178,2]
[362932055,1748525437747,-400.78012797,0.00019178,2]
[362932056,1748525437762,-430.0,0.00019178,2]
[362932057,1748525437772,-380.43534274,0.00019178,2]
[362932058,1748525437781,-430.0,0.00019178,2]
[362932059,1748525437791,-430.0,0.00019178,2]
[362932062,1748525437800,-430.0,0.00019178,2]
[362932064,1748525437810,-430.0,0.00019178,2]
[362932067,1748525437819,-430.16291856,0.00019178,2]
[362932069,1748525437828,-500.0,0.00019178,2]
[362932071,1748525437837,-430.0,0.00019178,2]
[362932073,1748525437846,-374.82669346,0.00019178,2]
[362932075,1748525437856,-500.0,0.00019178,2]
[362932077,1748525437866,-500.0,0.00019178,2]
[362932079,1748525437875,-500.0,0.00019178,2]
[362932080,1748525437884,-500.0,0.00019178,2]
[362932081,1748525437894,-500.0,0.00019178,2]
[362932082,1748525437903,-500.0,0.00019178,2]
[362932084,1748525437913,-500.0,0.00019178,2]
[362932086,1748525437922,-504.65716451,0.00019178,2]
[362932088,1748525437931,-430.0,0.00019178,2]
[362932089,1748525437940,-540.0,0.00019178,2]
[362932090,1748525437949,-376.0249121,0.00019178,2]
[362932091,1748525437959,-430.72756774,0.00019178,2]
[362932092,1748525437968,-430.0,0.00019178,2]
[362932093,1748525437977,-430.0,0.00019178,2]
[362932094,1748525437987,-450.0,0.00019178,2]
[362932095,1748525437997,-430.0,0.00019178,2]
[362932096,1748525438012,-430.0,0.00019178,2]
[362932097,1748525438022,-430.0,0.00019178,2]
[362932098,1748525438031,-430.0,0.00019178,2]
[362932099,1748525438041,-430.0,0.00019178,2]
[362932100,1748525438051,-430.0,0.00019178,2]
[362932101,1748525438061,-430.0,0.00019178,2]
[362932102,1748525438071,-430.0,0.00019178,2]
[362932103,1748525438080,-321.49134688,0.00019178,2]
[362932104,1748525438090,-430.0,0.00019178,2]
[362932105,1748525438100,-430.0,0.00019178,2]
[362932106,1748525438110,-430.0,0.00019178,2]
[362932107,1748525438119,-403.07999324,0.00019178,2]
[362932108,1748525438129,-378.91041067,0.00019178,2]
[362932109,1748525438139,-430.0,0.00019178,2]
[362932110,1748525438148,-165.71200291,0.00019178,2]
[362932111,1748525438158,-430.0,0.00019178,2]
[362932112,1748525438167,-362.91297158,0.00019178,2]
[362932113,1748525438177,-404.7878705,0.00019178,2]
[362932115,1748525438186,-430.0,0.00019178,2]
[362932116,1748525438196,-324.71540448,0.00019178,2]
[362932117,1748525438205,-430.0,0.00019178,2]
[362932118,1748525438215,-505.73056004,0.00019178,2]